bitfinex/quotes_ETHUSD_20220202
["timestamp","ask_amount","ask_price","bid_price","bid_amount"]
[1643820536809,0.00500371,2667.3,2666.8,0.21662051]
[1643820537608,0.00500371,2667.3,2666.9,0.88336734]
[1643820537810,0.1874,2667.7,2666.9,0.88336734]
[1643820538010,0.00500382,2667.2,2666.9,0.88336734]
[1643820538209,0.00500382,2667.2,2666.8,0.21662051]
[1643820538860,0.1874,2667.7,2666.8,0.21662051]
[1643820539062,0.1874,2667.7,2666.9,0.86212999]
[1643820539261,0.0046561,2667.1,2666.9,0.86212999]
[1643820539463,0.0046561,2667.1,2666.8,0.21662051]
[1643820539762,0.0046561,2667.1,2666.6,0.00465709]
[1643820540161,0.01,2667.6,2666.5,4.5516]
[1643820540561,0.00465613,2667.1,2666.6,0.00465703]
[1643820540764,0.00465613,2667.1,2666.7,0.19053006]
[1643820541562,0.00465616,2667.0,2666.7,0.19053006]
[1643820542417,0.1874,2667.5,2666.7,0.19053006]
[1643820542617,1.13244505,2668.1,2666.7,0.37793006]
[1643820542817,0.004552,2667.0,2666.8,2.66093394]
[1643820543017,0.004552,2667.0,2666.9,5.9374]
[1643820543217,0.004552,2667.0,2666.9,5.75]
[1643820543519,5.2e-05,2667.0,2666.9,8.39137419]
[1643820543720,0.1974,2668.0,2666.9,10.23237419]
[1643820543922,0.1874,2668.6,2667.1,1.88720645]
[1643820544118,1.98393267,2669.0,2667.1,1.88720645]
[1643820544119,2.46210664,2668.9,2667.7,0.01225806]
[1643820544321,1.12224505,2669.2,2667.8,0.1872]
[1643820544518,2.4826338,2669.4,2669.0,0.8766453]
[1643820544519,0.93504505,2669.3,2669.0,0.8766453]
[1643820544722,1.2578829,2669.4,2669.0,0.8766453]
[1643820544723,1.0706829,2669.4,2669.0,0.8766453]
[1643820545120,1.0706829,2669.4,2668.7,0.541]
[1643820545320,0.00261721,2669.5,2668.8,5.75]
[1643820545522,1.5991509,2669.9,2669.0,0.01257086]
[1643820545523,0.93504505,2669.9,2669.0,0.01257086]
[1643820545722,0.93504505,2669.9,2669.7,0.167905]
[1643820545964,0.72757556,2669.7,2669.1,0.541]
[1643820546170,0.93504505,2669.6,2668.9,0.70499705]
[1643820546469,0.9397209,2669.6,2668.9,0.70499705]
[1643820546665,0.93504505,2669.5,2668.5,3.111]
[1643820546867,0.9397209,2669.6,2668.7,0.21947863]
[1643820547565,1.4119509,2669.9,2668.7,0.21947863]
[1643820547566,0.79871948,2669.5,2668.7,0.71904825]
[1643820547765,0.00467603,2669.3,2669.1,0.004]
[1643820548266,3.3872,2669.2,2669.1,0.004]
[1643820548467,4.32224505,2669.2,2669.1,0.004]
[1643820548666,3.79790386,2669.2,2669.1,0.004]
[1643820549268,3.60979386,2669.2,2669.1,0.004]
[1643820549717,1.35122611,2669.2,2669.1,0.004]
[1643820550113,0.22259386,2669.2,2669.1,0.004]
[1643820550313,1.16402611,2669.2,2669.1,0.004]
[1643820550817,5.69790386,2669.2,2669.1,0.00136532]
[1643820551215,7.11082827,2669.2,2669.1,0.00136532]
[1643820551419,2.01082827,2669.2,2669.1,0.00136532]
[1643820551619,0.59790386,2669.2,2669.1,0.00136532]
[1643820552416,0.42207454,2669.2,2669.1,0.00136532]
[1643820552619,1.35209511,2669.2,2669.1,0.00136532]
[1643820553015,1.16489511,2669.2,2669.1,0.00136532]
[1643820553577,1.64832334,2669.2,2669.1,0.00136532]
[1643820553775,4.49832334,2669.2,2669.1,0.00136532]
[1643820554377,4.68552334,2669.2,2669.1,0.00136532]
[1643820554680,7.67911507,2669.2,2669.1,6.532e-05]
[1643820554880,8.97911507,2669.2,2669.1,6.532e-05]
[1643820555476,16.56761507,2669.2,2669.1,6.532e-05]
[1643820555677,19.714321,2669.2,2669.1,6.532e-05]
[1643820555877,12.125821,2669.2,2669.1,6.532e-05]
[1643820556076,6.67911507,2669.2,2669.1,6.532e-05]
[1643820556276,3.36269626,2669.2,2669.1,6.532e-05]
[1643820556682,2.96209023,2669.2,2669.1,6.532e-05]
[1643820556880,4.84698173,2669.2,2669.1,6.532e-05]
[1643820557079,5.14698173,2669.2,2669.1,6.532e-05]
[1643820557318,6.71472074,2669.2,2669.1,6.532e-05]
[1643820557716,8.69291659,2669.2,2669.1,6.532e-05]
[1643820558120,0.91579699,2668.4,2667.5,0.92007965]
[1643820558319,0.91579699,2668.4,2667.5,0.73287965]
[1643820558519,0.01,2668.4,2667.5,0.73287965]
[1643820558716,0.01,2668.5,2667.6,0.1874]
[1643820559015,0.21660597,2668.1,2667.6,0.1874]
[1643820559416,0.21660597,2668.1,2667.5,0.1874]
[1643820559615,0.21922639,2668.1,2667.4,0.00440837]
[1643820560017,0.00262042,2668.1,2667.4,0.00440837]
[1643820560219,0.00440702,2668.2,2667.5,0.1874]
[1643820560617,0.00262042,2668.3,2667.5,0.1874]
[1643820560818,0.00262042,2668.5,2667.5,0.1874]
[1643820561062,0.00453579,2667.9,2667.5,0.1874]
[1643820561464,0.00453579,2667.9,2667.7,0.76690563]
[1643820561765,0.00262042,2668.0,2667.7,0.76690563]
[1643820561961,0.00262042,2668.5,2667.7,0.76690563]
[1643820562161,0.00453582,2667.8,2667.7,0.76690563]
[1643820562564,0.00453582,2667.8,2667.7,3.26690563]
[1643820562767,0.00453582,2667.8,2667.7,2.5]
[1643820562965,0.00262042,2668.5,2667.7,2.5]
[1643820563165,0.00262042,2668.5,2667.8,0.1872]
[1643820563366,0.00453579,2667.9,2667.8,0.1872]
[1643820563566,0.2228314,2667.9,2667.7,2.5]
[1643820563967,0.00453579,2667.9,2667.7,2.6874]
[1643820564167,0.00262042,2668.5,2667.7,2.6874]
[1643820564371,0.00419429,2667.9,2667.7,2.6874]
[1643820564811,0.00419429,2667.9,2667.7,2.5]
[1643820565513,0.01262042,2668.5,2667.7,2.5]
[1643820565713,0.00419429,2667.9,2667.5,0.69055476]
[1643820565913,0.00419429,2667.9,2667.5,0.1874]
[1643820566513,0.00419429,2667.9,2667.4,0.00419519]
[1643820566915,0.21579538,2667.7,2667.4,0.00419509]
[1643820567111,1.13399645,2667.7,2667.4,0.00419509]
[1643820567311,0.01,2667.6,2667.4,0.00419509]
[1643820567712,0.01,2667.6,2666.9,0.04738316]
[1643820568313,0.01425887,2667.6,2667.4,0.0042593]
[1643820568965,0.01,2667.6,2666.9,0.04738316]
[1643820569468,0.01425887,2667.6,2667.4,0.0042593]
[1643820569668,0.00425887,2667.6,2667.4,0.0042593]
[1643820571066,0.16230839,2667.6,2667.4,0.0042593]
[1643820571466,0.15804952,2667.6,2666.9,0.04738316]
[1643820571666,0.16242666,2667.6,2667.4,0.00437758]
[1643820572513,0.15804952,2667.6,2666.9,0.04738316]
[1643820572714,0.1874,2667.9,2666.9,0.04738316]
[1643820572914,0.16431133,2667.9,2667.4,0.00437758]
[1643820573118,0.01285016,2667.5,2666.1,0.1874]
[1643820573317,0.01285016,2667.5,2665.5,0.1874]
[1643820573318,1.0,2666.7,2665.5,0.1874]
[1643820573516,0.01247651,2666.3,2665.5,0.1874]
[1643820573714,0.01247651,2666.3,2664.8,0.1875]
[1643820573715,0.02710471,2666.3,2664.8,0.1875]
[1643820573917,0.73598105,2665.3,2664.9,1.57262988]
[1643820574216,0.73598105,2665.3,2664.7,0.1875]
[1643820574217,0.00717721,2665.3,2664.7,0.1875]
[1643820574420,0.1875,2665.5,2664.8,1.57280794]
[1643820574624,0.1,2666.0,2664.9,6.77634352]
[1643820574816,2.39914835,2666.6,2665.5,0.01289704]
[1643820575016,0.01018199,2666.6,2665.5,0.01289704]
[1643820575216,0.0944,2666.5,2665.0,0.1875]
[1643820575416,0.0944,2666.5,2665.3,0.00165214]
[1643820575616,0.22380235,2665.7,2665.3,0.00165214]
[1643820575815,0.00728254,2666.4,2665.3,0.00165214]
[1643820576065,0.09428,2666.3,2665.3,0.00165214]
[1643820576262,0.09428,2666.3,2665.0,1.57245503]
[1643820576465,0.68520425,2666.2,2665.7,0.00165189]
[1643820576662,0.09414,2666.1,2665.7,0.00165189]
[1643820577062,0.094,2666.3,2665.7,0.00165189]
[1643820577464,0.094,2666.3,2665.3,0.91574463]
[1643820577664,0.00504785,2666.3,2665.4,2.11317124]
[1643820577863,0.09386,2666.7,2665.9,0.0016518]
[1643820578063,0.09386,2666.7,2666.1,0.6706156]
[1643820578464,0.27304569,2666.6,2666.1,0.6706156]
[1643820578666,0.07947573,2666.5,2666.1,0.6706156]
[1643820578863,0.19356996,2666.6,2666.1,0.6706156]
[1643820579064,0.19356996,2666.6,2666.3,0.00490249]
[1643820579462,0.19356996,2666.6,2666.3,0.00410249]
[1643820579463,0.07948199,2666.5,2666.3,0.00410249]
[1643820579913,0.07948199,2666.5,2665.8,0.79487918]
[1643820580915,0.01,2667.3,2666.0,0.01288407]
[1643820581114,0.57718414,2668.0,2666.1,0.451]
[1643820581115,0.07946927,2667.1,2666.1,0.451]
[1643820581513,0.07946927,2667.1,2666.1,3.55742963]
[1643820581712,0.07946927,2667.1,2666.8,0.92311602]
[1643820582113,0.1,2667.6,2666.8,0.92311602]
[1643820582313,0.01,2667.7,2666.8,0.92311602]
[1643820582314,0.07945875,2667.5,2666.8,1.37411602]
[1643820582518,0.1,2667.7,2666.8,1.37411602]
[1643820582519,0.07945875,2667.4,2666.8,1.37411602]
[1643820582713,0.07945875,2667.3,2666.8,1.37411602]
[1643820582914,0.07945875,2667.2,2666.8,1.37411602]
[1643820583115,0.11,2667.8,2666.8,1.37411602]
[1643820583467,0.70754384,2668.0,2666.8,1.37411602]
[1643820583468,0.07945203,2667.7,2666.8,1.37411602]
[1643820583670,0.07945203,2667.6,2666.8,1.37411602]
[1643820583872,0.08446409,2667.5,2666.8,1.37411602]
[1643820584071,0.07945203,2667.4,2666.8,1.37411602]
[1643820584771,0.07945203,2667.3,2666.8,1.37411602]
[1643820584970,0.00501218,2667.5,2666.8,1.37411602]
[1643820585177,0.07945459,2667.4,2666.8,1.37411602]
[1643820586170,0.07945459,2667.3,2666.8,1.37411602]
[1643820586370,0.00501218,2667.5,2666.8,1.37411602]
[1643820586371,0.07945459,2667.2,2666.8,1.37411602]
[1643820586570,0.00501218,2667.5,2666.8,1.37411602]
[1643820586770,0.07945388,2667.4,2666.8,1.37411602]
[1643820587215,0.07945388,2667.3,2666.8,1.37411602]
[1643820587413,0.00501223,2667.5,2666.8,1.37411602]
[1643820587616,0.00501223,2667.5,2666.8,0.451]
[1643820587617,0.0794533,2667.4,2666.8,0.451]
[1643820588616,0.87887456,2667.2,2666.8,0.451]
[1643820588819,0.0794533,2667.1,2666.5,0.1874]
[1643820589016,0.0794533,2667.1,2666.4,0.00501434]
[1643820589715,0.0794533,2667.1,2666.4,0.86857376]
[1643820590519,0.0794533,2667.0,2666.4,0.86857376]
[1643820590717,0.0794533,2666.9,2666.4,1.80420727]
[1643820590969,0.2216024,2667.7,2666.4,1.80420727]
[1643820590970,0.51582756,2668.3,2666.8,0.01200444]
[1643820591173,0.00262042,2668.4,2666.8,0.01200444]
[1643820591174,2.27650846,2668.2,2666.8,0.19940444]
[1643820591367,0.00262042,2668.4,2666.9,0.451]
[1643820591567,2.27650846,2668.5,2667.0,0.1874]
[1643820591766,0.00262042,2668.6,2667.0,0.6384]
[1643820591965,0.20130296,2668.1,2667.5,0.90319527]
[1643820592266,2.27650846,2668.8,2667.5,0.90319527]
[1643820592267,0.00484524,2667.8,2667.5,0.90319527]
[1643820592465,0.00484524,2667.8,2667.5,0.90380524]
[1643820593065,0.19129105,2668.4,2667.5,0.90380524]
[1643820593565,0.19129105,2668.4,2667.5,0.00060997]
[1643820593566,0.00484524,2667.8,2667.5,0.00060997]
[1643820593766,0.00484524,2667.8,2667.2,0.13819997]
[1643820594366,0.01218537,2668.1,2667.2,0.13819997]
[1643820594713,0.0050145,2667.6,2667.2,0.13819997]
[1643820594918,0.0050145,2667.6,2666.9,0.13880994]
[1643820595312,0.0050145,2667.6,2666.9,0.00060997]
[1643820595518,0.0050145,2667.6,2666.6,0.1874]
[1643820595519,0.22186915,2667.3,2666.6,0.72306741]
[1643820596316,0.0050144,2667.5,2666.4,0.00562653]
[1643820596515,0.0050144,2667.5,2666.4,0.00501656]
[1643820596713,0.005,2667.7,2666.3,0.1874]
[1643820597119,1.0,2667.2,2666.3,0.1874]
[1643820597319,0.01254166,2667.5,2666.4,0.00484914]
[1643820597320,1.0,2666.8,2666.4,0.00484914]
[1643820597519,0.005,2666.7,2666.4,0.00484914]
[1643820597918,0.005,2666.7,2666.1,0.00060997]
[1643820598122,0.01008657,2666.8,2666.1,0.00060997]
[1643820598319,0.005,2666.8,2666.4,0.00484876]
[1643820598569,0.01004321,2666.8,2666.4,0.00484876]
[1643820598769,0.18739,2666.7,2666.4,0.00484876]
[1643820598970,0.005,2666.8,2666.4,0.00484876]
[1643820599173,0.18547141,2666.9,2666.1,0.00060997]
[1643820599372,0.18547141,2666.9,2666.4,0.00484876]
[1643820600171,0.19047141,2666.9,2666.4,0.00484876]
[1643820600373,0.19047141,2666.9,2666.1,0.00060997]
[1643820600572,0.19047141,2666.9,2666.4,0.00501587]
[1643820601072,0.18547141,2666.9,2666.4,0.00501587]
[1643820601672,0.18547141,2666.9,2666.3,0.95180488]
[1643820601871,0.18547141,2666.9,2666.4,0.00485222]
[1643820602321,2.44633342,2667.4,2666.5,5.75]
[1643820602322,2.25894342,2667.4,2666.5,5.75]
[1643820602616,1.42320356,2667.5,2667.3,0.01210976]
[1643820602617,0.00485014,2667.5,2667.3,0.01210976]
[1643820602918,2.26156384,2668.2,2666.5,5.75]
[1643820602919,3.67991726,2668.2,2666.7,0.6384]
[1643820603113,0.00485048,2667.5,2666.7,0.6384]
[1643820603317,0.00485048,2667.5,2666.9,0.79721669]
[1643820603513,0.00485048,2667.5,2667.0,0.1874]
[1643820603714,0.00485048,2667.5,2666.8,0.1874]
[1643820603915,0.03234982,2668.0,2666.7,0.1874]
[1643820603916,0.01295113,2668.0,2666.7,0.1874]
[1643820604115,3.67991726,2668.2,2666.8,0.451]
[1643820604116,0.00262042,2668.2,2666.8,0.451]
[1643820604315,7.38511641,2668.9,2667.0,0.0123084]
[1643820604316,0.00485082,2667.5,2667.0,0.0123084]
[1643820604516,0.00485082,2667.5,2667.4,5.95887912]
[1643820604716,5.082e-05,2667.5,2667.4,6.1248]
[1643820604920,5.082e-05,2667.5,2667.4,9.76637789]
[1643820605117,0.00262042,2668.7,2667.6,5.75696566]
[1643820605315,0.00262042,2668.7,2668.0,0.01251025]
[1643820605519,0.0008,2669.0,2668.1,0.8256]
[1643820605973,0.0008,2669.0,2668.9,3.85]
[1643820606171,0.0008,2669.0,2668.8,0.451]
[1643820606368,0.0008,2669.0,2668.4,0.1872]
[1643820606570,0.0008,2669.0,2668.1,0.1872]
[1643820606767,0.0008,2669.0,2667.9,0.1872]
[1643820606968,0.0008,2669.0,2667.9,0.3746]
[1643820607168,0.0008,2669.0,2667.9,0.1872]
[1643820607369,0.0008,2669.0,2668.3,0.89097485]
[1643820607970,0.15809806,2668.6,2668.3,0.89097485]
[1643820608171,0.15809806,2668.6,2668.1,0.451]
[1643820608172,0.0125331,2668.5,2668.1,0.451]
[1643820608372,0.00302291,2668.6,2667.8,0.00385752]
[1643820608869,0.005,2668.8,2667.8,0.19105752]
[1643820609068,0.005,2668.9,2668.0,0.95298664]
[1643820609269,0.00501398,2668.3,2668.0,0.95298664]
[1643820610121,0.74271043,2668.9,2668.0,0.95298664]
[1643820610420,0.74271043,2668.9,2667.8,0.19105752]
[1643820610421,0.00501402,2668.3,2667.9,0.0050148]
[1643820611021,2.49744413,2668.5,2667.9,0.0050148]
[1643820611225,0.00762042,2668.5,2667.9,0.0050148]
[1643820611422,0.76536784,2668.2,2667.9,0.0050148]
[1643820611622,0.77038189,2668.2,2667.9,0.00501474]
[1643820611823,5.54943827,2668.0,2667.9,0.00501474]
[1643820612022,8.48953484,2668.0,2667.9,0.00501474]
[1643820612420,8.70421379,2668.0,2667.9,0.00501474]
[1643820612821,0.01204827,2668.0,2667.9,0.00501474]
[1643820613021,0.01204827,2668.0,2666.9,0.9054281]
[1643820613022,0.00262042,2668.3,2667.3,0.451]
[1643820613222,3.25894342,2668.8,2668.6,0.04731353]
[1643820613465,0.94319483,2668.7,2668.6,0.0261991]
[1643820613869,5.04715629,2668.7,2668.6,0.0261991]
[1643820614266,4.29135146,2668.7,2668.6,0.0261991]
[1643820614469,5.35,2668.6,2666.9,1.18182804]
[1643820614667,0.94331635,2668.4,2666.9,1.18182804]
[1643820615074,1.0,2668.4,2666.9,1.18182804]
[1643820615270,2.69512075,2668.3,2666.9,1.18182804]
[1643820615470,0.67724929,2667.7,2666.9,1.18182804]
[1643820615671,2.69512075,2668.3,2666.9,1.18182804]
[1643820615876,2.69512075,2668.3,2666.9,0.27639994]
[1643820616070,1.0,2668.2,2666.9,0.27639994]
[1643820616272,3.02730858,2668.1,2666.9,0.27639994]
[1643820616672,0.18739,2668.1,2666.9,0.27639994]
[1643820616877,0.01545261,2668.3,2667.9,0.7916113]
[1643820616878,0.00262042,2668.3,2667.9,0.7916113]
[1643820617075,0.00564113,2668.5,2667.2,0.1874]
[1643820617319,0.00564113,2668.5,2667.3,0.451]
[1643820617620,0.00262042,2668.5,2667.3,0.451]
[1643820617822,0.00501809,2668.5,2668.0,0.00501915]
[1643820618019,0.21749019,2668.4,2668.0,0.00501915]
[1643820618422,0.00501809,2668.5,2668.0,0.00501915]
[1643820618622,0.02038292,2668.6,2667.5,0.20771849]
[1643820618623,0.00762042,2668.6,2667.5,0.20771849]
[1643820618821,0.00262042,2668.8,2667.6,0.8258]
[1643820619032,0.0050182,2668.5,2668.1,0.00501908]
[1643820619323,0.0050182,2668.5,2668.2,0.6382]
[1643820619623,0.0050182,2668.5,2668.3,0.8892505]
[1643820619819,0.0050182,2668.5,2668.4,5.8382]
[1643820620021,0.15755773,2668.9,2668.4,5.651]
[1643820620022,0.00262042,2668.8,2668.4,5.651]
[1643820620223,0.00501837,2668.5,2668.4,0.451]
[1643820620424,0.00501837,2668.5,2668.4,0.6384]
[1643820620625,0.00501837,2668.5,2668.4,1.1256]
[1643820620826,0.00501837,2668.5,2668.4,0.8256]
[1643820621079,0.0008,2669.0,2668.4,6.5756]
[1643820621273,0.0008,2669.0,2668.6,1.79115837]
[1643820621476,0.0008,2669.0,2668.7,0.6382]
[1643820621677,0.0008,2669.0,2668.7,0.451]
[1643820622275,0.0008,2669.0,2668.7,4.72674308]
[1643820622475,0.00536454,2669.0,2668.7,4.72674308]
[1643820622675,0.00536454,2669.0,2668.9,5.2]
[1643820622876,0.00536454,2669.0,2668.7,0.451]
[1643820623079,0.00536454,2669.0,2667.9,6.5063]
[1643820623080,0.18739,2668.8,2667.2,0.84382753]
[1643820623278,0.18739,2668.8,2667.3,0.1874]
[1643820623279,0.01251233,2667.5,2667.3,0.1874]
[1643820623478,0.01251233,2667.5,2665.4,1.87536838]
[1643820623479,5.93739,2667.4,2666.6,0.1874]
[1643820623777,0.82579,2667.4,2666.2,0.149829]
[1643820623978,0.451,2667.3,2666.8,0.88809328]
[1643820624180,0.451,2667.3,2666.3,3.2888922]
[1643820624181,0.1874,2668.0,2666.5,5.75]
[1643820624382,0.1874,2668.0,2667.2,0.0123142]
[1643820624580,0.00262138,2668.4,2667.2,0.0123142]
[1643820624581,0.6384,2668.3,2667.2,0.0123142]
[1643820624831,0.00302608,2668.4,2667.3,0.6384]
[1643820625235,0.00302608,2668.4,2668.0,0.22090472]
[1643820625730,0.00262138,2668.5,2668.1,0.451]
[1643820625931,0.188,2669.0,2668.1,0.451]
[1643820625932,0.00262138,2668.6,2668.1,0.6382]
[1643820626235,0.00502527,2668.4,2668.1,0.6382]
[1643820626429,0.00262138,2668.6,2668.2,7.69238376]
[1643820626633,0.02009707,2668.9,2668.3,0.451]
[1643820626834,0.02009707,2668.9,2668.3,2.32443]
[1643820627430,0.0008,2669.0,2668.3,2.32443]
[1643820627630,0.0008,2669.0,2668.4,0.1872]
[1643820627930,0.0008,2669.0,2668.5,2.50860904]
[1643820628130,0.1872,2669.7,2668.7,5.75]
[1643820628332,0.1872,2669.7,2668.8,3.38774409]
[1643820628567,3.15087035,2670.3,2668.9,0.1872]
[1643820628568,0.07938367,2669.6,2668.9,0.1872]
[1643820628766,0.07938367,2669.5,2669.0,0.451]
[1643820628966,0.07938367,2669.4,2669.1,0.1872]
[1643820629168,3.097814,2670.2,2669.2,1.24203843]
[1643820629374,0.07938308,2670.1,2669.2,1.24203843]
[1643820629566,0.07938308,2670.0,2669.2,0.751]
[1643820629770,2.41045381,2670.5,2669.2,0.751]
[1643820629771,0.0030272,2669.4,2669.2,0.451]
[1643820629969,0.0030272,2669.4,2668.8,4.8942]
[1643820629970,0.10145327,2669.4,2668.8,3.8942]
[1643820630167,0.10145327,2669.4,2668.6,1.8486]
[1643820630168,0.07938308,2669.3,2668.6,1.8486]
[1643820630369,0.07938308,2669.2,2668.6,1.6614]
[1643820630567,0.84530179,2669.1,2668.4,0.1872]
[1643820630774,0.07938308,2669.0,2668.1,0.13819997]
[1643820631071,0.07938308,2668.9,2668.1,0.14322654]
[1643820631268,0.07938308,2668.8,2668.1,0.14322654]
[1643820631470,0.07938308,2668.7,2668.1,0.00502657]
[1643820631670,0.10044966,2668.7,2668.1,0.00502657]
[1643820631873,0.07938308,2668.6,2668.0,0.1872]
[1643820632320,0.00502519,2668.5,2668.1,0.00502594]
[1643820632825,0.07941249,2668.4,2668.1,0.00502594]
[1643820633020,0.10044966,2668.7,2668.1,0.00502594]
[1643820633219,0.10044966,2668.7,2668.0,0.1872]
[1643820633220,0.0794116,2668.6,2668.0,0.1872]
[1643820633520,0.00502507,2668.5,2668.1,0.00502583]
[1643820633721,0.0794112,2668.4,2668.1,0.00502583]
[1643820634221,0.10044966,2668.7,2668.0,0.94910614]
[1643820634427,0.07940922,2668.6,2668.0,0.94910614]
[1643820634623,0.07940922,2668.6,2668.0,1.70010614]
[1643820634624,0.00302873,2668.5,2668.0,1.70010614]
[1643820635222,0.00302873,2668.5,2668.1,0.1872]
[1643820635423,0.07939757,2669.0,2668.2,0.451]
[1643820635625,0.00262543,2669.1,2668.7,0.96203661]
[1643820635626,0.07939757,2668.9,2668.7,0.96203661]
[1643820635822,0.1872,2669.4,2668.7,0.96203661]
[1643820635823,0.02011691,2669.2,2668.7,0.96203661]
[1643820636080,0.0793981,2669.1,2668.7,0.96203661]
[1643820636482,0.0793981,2669.1,2668.6,0.451]
[1643820636877,0.0793981,2669.1,2668.1,0.00503127]
[1643820636878,0.2665981,2669.1,2668.1,0.00503127]
[1643820637086,0.2665981,2669.1,2668.1,0.00503198]
[1643820637087,2.29460781,2669.0,2668.1,0.00503198]
[1643820637277,0.2665981,2668.9,2668.1,0.00503198]
[1643820637477,0.2665981,2668.9,2668.2,0.21959447]
[1643820637478,0.0793981,2668.8,2668.2,0.21959447]
[1643820637680,0.1872,2668.7,2668.2,0.21959447]
[1643820637879,0.0793981,2668.6,2668.2,0.21959447]
[1643820638078,0.0793981,2668.6,2668.0,0.81011696]
[1643820638279,0.0793981,2668.6,2667.7,3.9011]
[1643820638280,0.08683419,2668.6,2668.1,0.00481157]
[1643820638479,0.0793981,2668.5,2668.1,0.00481157]
[1643820639278,0.1872,2668.4,2668.1,0.00481157]
[1643820639478,0.0793981,2668.3,2668.1,0.00481136]
[1643820639919,0.00481063,2668.5,2668.1,0.00481136]
[1643820640418,0.1872,2668.6,2667.8,1.32955258]
[1643820640419,0.1872,2668.6,2667.8,1.11299612]
[1643820640622,0.00464827,2668.5,2668.1,0.00464897]
[1643820641422,0.18982543,2669.1,2667.9,0.451]
[1643820641625,0.07940802,2669.0,2668.1,0.21726626]
[1643820641824,0.00302965,2668.5,2668.1,0.21726626]
[1643820642623,0.00302965,2668.5,2668.2,0.451]
[1643820643023,0.07940802,2669.0,2668.2,0.451]
[1643820643221,0.07940802,2668.9,2668.2,0.451]
[1643820643467,0.07940802,2668.8,2668.2,0.751]
[1643820643667,0.07940802,2668.7,2668.2,0.751]
[1643820643867,0.07940802,2668.6,2668.2,0.751]
[1643820644067,0.18982543,2669.2,2668.5,0.93734034]
[1643820644367,0.78545837,2669.1,2668.5,0.93734034]
[1643820644771,0.78545837,2669.0,2668.5,0.93734034]
[1643820644969,0.07940094,2668.9,2668.5,0.93734034]
[1643820645173,0.70605743,2669.1,2668.2,0.451]
[1643820645174,0.07940094,2668.8,2668.2,0.451]
[1643820645468,0.07940094,2668.7,2668.2,0.451]
[1643820645672,0.07940094,2668.6,2668.2,0.451]
[1643820645867,0.00504244,2668.9,2668.2,0.451]
[1643820645868,0.07940094,2668.5,2668.2,0.451]
[1643820646066,0.07940094,2668.5,2667.9,5.7251839]
[1643820646067,1.32281923,2668.0,2667.9,6.6622639]
[1643820646269,1.32281923,2668.0,2667.9,5.60296496]
[1643820646469,0.00262543,2668.8,2668.1,0.37120259]
[1643820646669,0.00504265,2668.5,2668.2,0.16916017]
[1643820646870,0.07940807,2668.4,2668.2,0.16916017]
[1643820647070,0.00504265,2668.5,2668.2,3.55]
[1643820647325,0.00504265,2668.5,2668.3,0.451]
[1643820647517,0.18982543,2669.1,2668.4,0.86419914]
[1643820647518,0.00262543,2668.8,2668.4,0.86419914]
[1643820647717,0.00262543,2668.8,2668.4,1.31519914]
[1643820647918,0.00262543,2668.8,2668.4,0.451]
[1643820648118,0.90925122,2669.0,2668.2,3.85]
[1643820648321,0.70605743,2668.9,2668.0,0.451]
[1643820648620,0.70605743,2668.9,2668.0,0.751]
[1643820648819,0.00262543,2668.8,2668.0,0.95105892]
[1643820649018,0.00262543,2668.8,2668.2,0.86872234]
[1643820649219,0.00262543,2668.8,2668.3,0.451]
[1643820649419,0.70868286,2669.0,2668.5,0.21224782]
[1643820649621,0.00262543,2669.0,2668.5,0.21224782]
[1643820649922,0.00262543,2669.0,2668.7,0.71754904]
[1643820650121,0.70605743,2669.1,2668.3,0.451]
[1643820650322,1.13051635,2669.3,2668.3,0.451]
[1643820650323,0.00504244,2668.9,2668.3,0.451]
[1643820650522,0.71109987,2668.9,2668.3,0.451]
[1643820651069,0.71372741,2668.9,2668.3,0.451]
[1643820651271,0.71372741,2668.9,2668.3,0.64808229]
[1643820651272,0.00262754,2668.9,2668.3,0.64808229]
[1643820651470,0.70868497,2668.9,2668.3,0.64808229]
[1643820651671,0.70605743,2669.0,2668.3,0.451]
[1643820652172,0.18982754,2669.1,2668.3,0.451]
[1643820652372,0.18982754,2669.1,2668.3,0.6382]
[1643820652373,0.70605743,2669.0,2668.3,0.6382]
[1643820652574,0.70605743,2669.0,2668.3,0.451]
[1643820652770,0.70868497,2669.1,2668.1,0.1872]
[1643820652971,0.92774993,2668.9,2668.1,0.1872]
[1643820653171,0.70868497,2668.9,2668.0,1.6643119]
[1643820653371,0.00262754,2668.9,2668.0,0.4892119]
[1643820653571,0.70605743,2669.0,2668.0,0.4872]
[1643820653772,0.70605743,2669.0,2668.0,10.48917418]
[1643820654172,0.00262754,2668.9,2668.0,11.42620418]
[1643820654374,0.00262754,2668.9,2668.2,0.9369935]
[1643820655023,0.00262754,2668.9,2668.3,0.6821218]
[1643820655221,0.00500659,2668.7,2668.2,0.9369935]
[1643820655419,0.00500659,2668.7,2668.0,10.19220793]
[1643820655617,0.00500659,2668.7,2668.0,10.00500793]
[1643820656219,0.00500673,2668.5,2668.1,0.81329793]
[1643820656418,0.00500673,2668.5,2668.1,0.71262859]
[1643820656623,0.00500673,2668.5,2668.1,0.88353355]
[1643820657224,0.00262754,2668.9,2668.6,0.94957752]
[1643820657522,0.00262754,2668.9,2668.6,1.45967859]
[1643820657523,0.02212613,2668.9,2668.6,1.45967859]
[1643820657725,0.01949859,2668.9,2668.6,1.24957752]
[1643820658581,0.00487519,2668.9,2668.6,1.24957752]
[1643820658780,0.00487519,2668.9,2668.7,0.16573137]
[1643820659580,0.00262754,2669.2,2668.6,1.70057752]
[1643820659981,0.00487515,2668.9,2668.6,1.70057752]
[1643820660180,0.00487515,2668.9,2668.7,1.1239521]
[1643820660384,0.00487515,2668.9,2668.7,2.1239521]
[1643820660581,0.00487515,2668.9,2668.8,0.3]
[1643820660782,0.70605743,2669.5,2668.8,0.3]
[1643820660982,0.70605743,2669.3,2668.6,3.46128162]
[1643820661182,0.00504411,2668.9,2668.6,3.27408162]
[1643820661385,0.00504411,2668.9,2668.6,5.14772162]
[1643820661586,0.00504411,2668.9,2668.6,1.40057752]
[1643820661783,0.00504411,2668.9,2668.6,0.94957752]
[1643820661984,0.70605743,2669.1,2668.4,1.873727]
[1643820662220,0.70605743,2669.1,2668.3,0.1872]
[1643820662424,4.67009396,2670.2,2668.3,0.1872]
[1643820662425,1.4214198,2670.0,2668.8,0.99999999]
[1643820662623,2.81041,2670.6,2669.0,0.01203156]
[1643820662624,0.9476132,2670.1,2669.0,0.01203156]
[1643820662821,1.4214198,2670.3,2669.0,0.01203156]
[1643820662822,0.00262762,2669.9,2669.0,0.01203156]
[1643820663223,3.14214502,2670.2,2669.1,0.18724]
[1643820663423,0.20974282,2669.9,2669.3,0.82627704]